fUST/lending_fUST_20240729
["ID","MTS","AMOUNT","RATE_DAILY","PERIOD"]
[333562379,1722247468741,159.77700948,9.999e-05,2]
[333562380,1722247487885,154.60575532,9.999e-05,2]
[333562381,1722247505192,154.60575532,9.999e-05,2]
[333562382,1722247547819,162.76590037,9.999e-05,2]
[333562383,1722247582569,180.26595097,9.999e-05,2]
[333562384,1722247588123,803.95416911,9.999e-05,2]
[333562385,1722247600666,155.04594726,9.999e-05,2]
[333562386,1722247601619,188.10567749,9.999e-05,2]
[333562387,1722247605834,154.60575532,9.999e-05,2]
[333562388,1722247606696,154.60575532,9.999e-05,2]
[333562389,1722247612805,404.47935249,9.999e-05,2]
[333562390,1722247621722,155.72742978,9.999e-05,2]
[333562391,1722247627591,209.63108512,9.999e-05,2]
[333562392,1722247628720,193.90661985,9.999e-05,2]
[333562393,1722247629920,-217.53565664,0.0001212,2]
[333562394,1722247629943,-323.93313452,0.0001212,2]
[333562395,1722247629969,-154.69833824,0.0001212,2]
[333562396,1722247629992,-154.68290005,0.0001212,2]
[333562397,1722247630029,-300.0,0.00012734,2]
[333562398,1722247630055,-171.01050387,0.00012735,2]
[333562399,1722247637882,-4875.93815665,0.00012735,2]
[333562404,1722247690667,276.54437551,9.999e-05,2]
[333562405,1722247690701,178.6207757,9.999e-05,2]
[333562406,1722247703836,154.60575532,9.999e-05,2]
[333562407,1722247715892,375.76915132,9.999e-05,2]
[333562409,1722247725747,154.88370439,9.999e-05,2]
[333562410,1722247735590,188.10567749,9.999e-05,2]
[333562411,1722247749175,-300.0,0.00012359,2]
[333562412,1722247749196,-10907.06767961,0.0001236,2]
[333562413,1722247754119,-154.99147897,0.0001212,2]
[333562414,1722247754152,-8407.66657625,0.0001236,2]
[333562415,1722247756310,277.66440512,9.999e-05,2]
[333562416,1722247757106,-518.31708354,0.0001236,2]
[333562417,1722247757128,-500.3127797,0.0001286,2]
[333562418,1722247757151,-119.41626532,0.00012986,2]
[333562419,1722247762162,-77.05401268,0.00012986,2]
[333562420,1722247762184,-500.0,0.00013698,2]
[333562421,1722247762204,-500.0,0.00013698,2]
[333562422,1722247762226,-500.0,0.00013698,2]
[333562423,1722247762250,-500.0,0.00013698,2]
[333562424,1722247762272,-500.0,0.00013698,2]
[333562425,1722247762298,-500.0,0.00013698,2]
[333562426,1722247762320,-486.44577265,0.00013698,2]
[333562427,1722247762341,-322.5,0.00013698,2]
[333562428,1722247762365,-410.75349382,0.00013698,2]
[333562429,1722247762386,-500.0,0.00013698,2]
[333562430,1722247762407,-511.69242223,0.00013896,2]
[333562431,1722247773213,-1227.7777202,0.00013887,2]
[333562432,1722247773236,-23.56497726,0.00013896,2]
[333562433,1722247773259,-500.0,0.00013985,2]
[333562434,1722247773283,-501.6651569,0.00013985,2]
[333562435,1722247773308,-500.0,0.00013985,2]
[333562436,1722247773331,-336.25206388,0.00013985,2]
[333562437,1722247773358,-700.78,0.00013986,2]
[333562438,1722247773380,-500.0,0.00013986,2]
[333562439,1722247773403,-500.0,0.00013986,2]
[333562440,1722247773426,-500.0,0.00013986,2]
[333562441,1722247773448,-500.0,0.00013986,2]
[333562442,1722247773473,-500.0,0.00013986,2]
[333562443,1722247773585,-500.0,0.00013986,2]
[333562444,1722247773632,-164.68,0.00013986,2]
[333562445,1722247773654,-500.0,0.00013986,2]
[333562446,1722247773683,-882.89,0.00013986,2]
[333562447,1722247773709,-827.96,0.00013986,2]
[333562448,1722247773733,-500.0,0.00013986,2]
[333562449,1722247773756,-500.0,0.00013986,2]
[333562450,1722247773777,-621.08,0.00013986,2]
[333562451,1722247773797,-293.52,0.00013986,2]
[333562452,1722247773819,-177.86825912,0.00013987,2]
[333562453,1722247773840,-500.0,0.00013987,2]
[333562454,1722247773862,-500.0,0.00013987,2]
[333562455,1722247773883,-500.0,0.00013987,2]
[333562456,1722247773904,-500.0,0.00013987,2]
[333562457,1722247773928,-500.0,0.00013987,2]
[333562458,1722247773948,-199.4506066,0.00013987,2]
[333562459,1722247773971,-500.0,0.00013987,2]
[333562460,1722247773993,-500.0,0.00013987,2]
[333562461,1722247774015,-500.0,0.00013987,2]
[333562462,1722247774038,-120.39635729,0.00013987,2]
[333562504,1722247832130,-671.58,0.00013986,2]
[333562506,1722247832141,-266.64642531,0.00013986,2]
[333562531,1722247838082,-233.35357469,0.00013986,2]
[333562532,1722247838092,-199.50289868,0.00013986,2]
[333562533,1722247838127,-300.49710132,0.00013986,2]
[333562534,1722247838137,-113.51349468,0.00013987,2]
[333562567,1722247843487,-212.30594376,0.00013986,2]
[333562568,1722247843497,-202.5,0.00013986,2]
[333562569,1722247843507,-500.0,0.00013986,2]
[333562570,1722247843517,-354.69821038,0.00013987,2]
[333562571,1722247843528,-500.0,0.00013987,2]
[333562572,1722247843538,-500.0,0.00013987,2]
[333562573,1722247843548,-500.0,0.00013987,2]
[333562574,1722247843557,-500.0,0.00013987,2]
[333562575,1722247843567,-500.0,0.00013987,2]
[333562576,1722247843577,-500.0,0.00013987,2]
[333562578,1722247843586,-343.29,0.00013987,2]
[333562580,1722247843596,-500.0,0.00013987,2]
[333562582,1722247843605,-500.0,0.00013987,2]
[333562584,1722247843615,-500.0,0.00013987,2]
[333562586,1722247843626,-500.0,0.00013987,2]
[333562589,1722247843638,-187.43,0.00013987,2]
[333562591,1722247843650,-500.0,0.00013987,2]
[333562593,1722247843659,-500.0,0.00013987,2]
[333562595,1722247843668,-598.92,0.00013987,2]
[333562597,1722247843677,-1141.35,0.00013987,2]
[333562599,1722247843687,-170.78,0.00013987,2]
[333562601,1722247843696,-4435.57,0.00013987,2]
[333562603,1722247843705,-152.36262645,0.00013987,2]
[333562605,1722247843715,-500.0,0.00013987,2]
[333562607,1722247843725,-500.0,0.00013987,2]
[333562609,1722247843735,-500.0,0.00013987,2]
[333562611,1722247843747,-500.0,0.00013987,2]
[333562613,1722247843757,-590.34477376,0.00013987,2]
[333562615,1722247843766,-431.68878843,0.00013987,2]
[333562617,1722247843775,-500.0,0.00013987,2]
[333562619,1722247843785,-367.39070035,0.00013987,2]
[333562621,1722247843795,-500.0,0.00013987,2]
[333562623,1722247843804,-500.0,0.00013987,2]
[333562625,1722247843815,-500.0,0.00013995,2]
[333562627,1722247843824,-500.0,0.00013995,2]
[333562629,1722247843835,-503.04334662,0.00013995,2]
[333562631,1722247843846,-518.91,0.00013997,2]
[333562634,1722247843858,-201.47045653,0.00013997,2]
[333562636,1722247843868,-500.0,0.00013997,2]
[333562638,1722247843877,-500.0,0.00013997,2]
[333562640,1722247843888,-500.0,0.00013997,2]
[333562642,1722247843898,-456.69846138,0.00013998,2]
[333562644,1722247843908,-507.57493204,0.00013998,2]
[333562654,1722247844005,-498.17016298,0.00013998,2]
[333562657,1722247844018,-568.85430094,0.00013998,2]
[333562659,1722247844028,-500.0,0.00013998,2]
[333562661,1722247844038,-518.91,0.00013998,2]
[333562663,1722247844049,-304.26,0.00013998,2]
[333562665,1722247844061,-503.72798546,0.00013998,2]
[333562667,1722247844071,-150.112233,0.00014,2]
[333562669,1722247844081,-150.112233,0.00014,2]
[333562671,1722247844091,-500.0,0.0001404,2]
[333562673,1722247844100,-671.58,0.0001404,2]
[333562675,1722247844110,-500.0,0.0001404,2]
[333562678,1722247844120,-351.16560983,0.0001404,2]
[333562680,1722247844130,-435.37644472,0.0001404,2]
[333562682,1722247844139,-13959.24061444,0.00014041,2]
[333562684,1722247844149,-428.2059196,0.0001416,2]
[333562686,1722247844160,-166.481559,0.00014247,2]
[333562688,1722247844170,-247.838646,0.00014247,2]
[333562690,1722247844180,-14428.4683486,0.00014251,2]
[333562692,1722247844189,-500.0,0.0001426,2]
[333562694,1722247844199,-329.43019115,0.0001426,2]
[333562696,1722247844208,-500.0,0.0001426,2]
[333562698,1722247844218,-175.1,0.0001426,2]
[333562700,1722247844229,-500.0,0.0001426,2]
[333562702,1722247844238,-882.89,0.0001426,2]
[333562704,1722247844249,-827.96,0.0001426,2]
[333562706,1722247844260,-500.0,0.0001426,2]
[333562708,1722247844270,-500.0,0.0001426,2]
[333562710,1722247844280,-479.2,0.0001426,2]
[333562712,1722247844289,-375.02597413,0.0001426,2]
[333562714,1722247844299,-608.93,0.00014261,2]
[333562716,1722247844309,-288.92,0.00014261,2]
[333562718,1722247844318,-518.91,0.00014261,2]
[333562720,1722247844327,-254.78,0.00014261,2]
[333562722,1722247844337,-609.58197259,0.00014261,2]
[333562724,1722247844347,-500.0,0.00014261,2]
[333562727,1722247844358,-500.0,0.00014261,2]
[333562729,1722247844369,-189.5,0.00014261,2]
[333562731,1722247844378,-500.0,0.00014261,2]
[333562733,1722247844388,-500.0,0.00014261,2]
[333562735,1722247844399,-1141.35,0.00014261,2]
[333562736,1722247844409,-4435.57,0.00014261,2]
[333562738,1722247844420,-500.0,0.00014261,2]
[333562740,1722247844433,-494.0,0.00014261,2]
[333562742,1722247844442,-151.0,0.00014261,2]
[333562744,1722247844451,-151.0,0.00014261,2]
[333562745,1722247844462,-151.0,0.00014261,2]
[333562747,1722247844472,-151.0,0.00014261,2]
[333562750,1722247844485,-608.3,0.00014261,2]
[333562752,1722247844496,-2657.36137281,0.00014267,2]
[333562753,1722247844506,-500.0,0.00014269,2]
[333562755,1722247844517,-671.58,0.00014269,2]
[333562757,1722247844528,-151.0,0.0001427,2]
[333562759,1722247844539,-151.0,0.0001427,2]
[333562761,1722247844548,-151.0,0.0001427,2]
[333562763,1722247844558,-151.0,0.0001427,2]
[333562765,1722247844567,-151.0,0.0001427,2]
[333562766,1722247844576,-151.0,0.0001427,2]
[333562768,1722247844585,-255.8,0.00014271,2]
[333562770,1722247844595,-493.41930124,0.00014271,2]
[333562772,1722247844604,-518.91,0.00014272,2]
[333562774,1722247844614,-151.0,0.00014304,2]
[333562776,1722247844625,-152.367118,0.00014304,2]
[333562778,1722247844635,-428.20591959,0.00014424,2]
[333562780,1722247844647,-412.09214642,0.00014446,2]
[333562781,1722247844657,-150.0,0.00014479,2]
[333562783,1722247844667,-506.0,0.00014479,2]
[333562785,1722247844676,-500.0,0.00014534,2]
[333562787,1722247844685,-500.0,0.00014534,2]
[333562789,1722247844694,-500.0,0.00014534,2]
[333562791,1722247844704,-882.89,0.00014534,2]
[333562792,1722247844713,-827.96,0.00014534,2]
[333562794,1722247844722,-500.0,0.00014534,2]
[333562796,1722247844731,-500.0,0.00014534,2]
[333562798,1722247844741,-500.0,0.00014535,2]
[333562800,1722247844750,-500.0,0.00014535,2]
[333562802,1722247844762,-500.0,0.00014535,2]
[333562804,1722247844771,-500.0,0.00014535,2]
[333562806,1722247844781,-1141.35,0.00014535,2]
[333562808,1722247844790,-4435.57,0.00014535,2]
[333562809,1722247844799,-500.0,0.00014535,2]
[333562811,1722247844808,-198.751779,0.00014535,2]
[333562813,1722247844821,-500.0,0.00014543,2]
[333562815,1722247844831,-518.91,0.00014545,2]
[333562817,1722247844841,-200.0,0.00014586,2]
[333562819,1722247844851,-518.91,0.0001471,2]
[333562821,1722247844861,-500.0,0.00014808,2]
[333562823,1722247844871,-250.51774819,0.00014808,2]
[333562824,1722247844880,-151.0,0.00014808,2]
[333562826,1722247844889,-248.127657,0.00014808,2]
[333562828,1722247844899,-500.0,0.00014808,2]
[333562830,1722247844910,-882.89,0.00014808,2]
[333562832,1722247844920,-827.96,0.00014808,2]
[333562834,1722247844934,-500.0,0.00014808,2]
[333562836,1722247844944,-500.0,0.00014808,2]
[333562838,1722247844955,-500.0,0.00014809,2]
[333562840,1722247844964,-500.0,0.00014809,2]
[333562841,1722247844975,-151.0,0.00014809,2]
[333562843,1722247844984,-500.0,0.00014809,2]
[333562845,1722247844994,-500.0,0.00014809,2]
[333562847,1722247845004,-4435.57,0.00014809,2]
[333562849,1722247845015,-1141.35,0.00014809,2]
[333562851,1722247845025,-500.0,0.00014809,2]
[333562853,1722247845034,-452.02367538,0.00014817,2]
[333562854,1722247845044,-151.0,0.00014819,2]
[333562856,1722247845054,-1410.0,0.00014878,2]
[333562858,1722247845064,-671.58,0.00014982,2]
[333562860,1722247845073,-518.91,0.00014983,2]
[333562862,1722247845083,-518.91,0.00014993,2]
[333562864,1722247845092,-518.91,0.00014993,2]
[333562866,1722247845102,-154.79103211,0.00015,2]
[333562867,1722247845111,-14428.4683486,0.00015073,2]
[333562869,1722247845120,-151.0,0.00015082,2]
[333562871,1722247845132,-279.09466797,0.00015082,2]
[333562874,1722247845149,-220.90533203,0.00015082,2]
[333562876,1722247845162,-297.58716325,0.00015082,2]
[333562878,1722247845174,-219.88263194,0.00015082,2]
[333562879,1722247845188,-71.59447959,0.00015082,2]
[333562880,1722247845216,-500.0,0.0001426,2]
[333562881,1722247845227,-811.29552041,0.00015082,2]
[333562882,1722247845238,-827.96,0.00015082,2]
[333562883,1722247845249,-75.19542598,0.00015082,2]
[333562884,1722247845292,-500.0,0.00014534,2]
[333562885,1722247845303,-167.25782684,0.00015082,2]
[333563618,1722248345645,155.6203917,9.999e-05,2]
[333563621,1722248408482,4707.01308214,9.999e-05,2]
[333563622,1722248410643,157.53942382,9.999e-05,2]
[333563623,1722248413889,3781.31705909,9.999e-05,2]
[333563624,1722248417666,15777.15622902,9.999e-05,2]
[333563625,1722248417697,542.54638972,9.999e-05,2]
[333563626,1722248419645,870.63807554,9.999e-05,2]
[333563628,1722248453535,160.02952721,9.999e-05,2]
[333563629,1722248455041,154.92706435,9.999e-05,2]
[333563630,1722248462651,231.79343084,9.999e-05,2]
[333563631,1722248593034,209.63850314,9.999e-05,2]
[333563643,1722248787311,154.97509757,9.999e-05,2]
[333563688,1722248828430,-166.666666,0.00012788,2]
[333563689,1722248828453,-177.653134,0.00012986,2]
[333563690,1722248828478,-241.90974862,0.00013074,2]
[333563693,1722248923163,12929.30552394,0.0001,2]
[333563694,1722248957123,-200.54237428,0.00013074,2]
[333563695,1722248957148,-168.711237,0.00013187,2]
[333563701,1722248964416,437.63,0.00010959,2]
[333563702,1722248966165,-643.8946196,0.00013226,2]
[333563703,1722248966189,-168.711237,0.00013273,2]
[333563704,1722248966214,-168.711237,0.00013359,2]
[333563705,1722248966240,-168.711237,0.00013445,2]
[333563706,1722248966265,-168.711237,0.00013531,2]
[333563707,1722248966288,-168.711237,0.00013616,2]
[333563708,1722248966309,-403.314564,0.00013699,2]
[333563709,1722248966331,-168.711237,0.00013702,2]
[333563710,1722248966354,-168.711237,0.00013788,2]
[333563711,1722248966376,-168.711237,0.00013874,2]
[333563712,1722248966400,-174.14902982,0.00013886,2]
[333563713,1722248977707,186.10189058,0.00013247,2]
[333563830,1722249039080,-300.0,0.00013246,2]
[333563831,1722249039090,-300.0,0.00013246,2]
[333563832,1722249039099,-21606.87563772,0.00013247,2]
[333563833,1722249039110,-500.0,0.00013986,2]
[333563834,1722249039121,-500.0,0.00013987,2]
[333563835,1722249039131,-310.2755384,0.00013987,2]
[333563836,1722249039140,-500.2828353,0.00013987,2]
[333563837,1722249039153,-508.5789151,0.00013987,2]
[333563838,1722249039168,-516.80356762,0.00013987,2]
[333563839,1722249039178,-503.33264163,0.00013987,2]
[333563840,1722249039188,-383.23682345,0.00013995,2]
[333563841,1722249039197,-1181.8604874,0.00014,2]
[333563842,1722249039207,-500.0,0.0001404,2]
[333563843,1722249039217,-500.0,0.0001404,2]
[333563844,1722249039228,-500.0,0.0001404,2]
[333563845,1722249039239,-166.481559,0.00014247,2]
[333563846,1722249039250,-322.438505,0.00014247,2]
[333563847,1722249039260,-246.02,0.00014314,2]
[333563848,1722249039271,-500.0,0.0001443,2]
[333563849,1722249039282,-245.81592688,0.0001443,2]
[333563850,1722249039292,-207.6382969,0.0001443,2]
[333563851,1722249039302,-1381.01587187,0.00014431,2]
[333563852,1722249039313,-500.0,0.00014446,2]
[333563853,1722249039322,-37818.41023454,0.000145,7]
[333563854,1722249039332,-166.666666,0.00014531,2]
[333563855,1722249039342,-91148.59009966,0.00014686,2]
[333563856,1722249039351,-301.00516353,0.00014875,2]
[333563857,1722249039363,-2574.54493169,0.00014982,2]
[333563858,1722249039373,-150.0,0.00014988,2]
[333563859,1722249039383,-1410.0,0.00014988,2]
[333563860,1722249039395,-500.0,0.00014999,2]
[333563861,1722249039404,-698.95,0.00014999,2]
[333563862,1722249039414,-1839.64941513,0.00015,2]
[333563863,1722249039424,-150.112233,0.00015,2]
[333563864,1722249039433,-150.112233,0.00015,2]
[333563865,1722249039443,-2846.40553147,0.00015,2]
[333563866,1722249039453,-500.0,0.00015072,2]
[333563867,1722249039466,-559.65,0.0001508,2]
[333563868,1722249039476,-500.0,0.0001508,2]
[333563869,1722249039486,-500.0,0.0001508,2]
[333563870,1722249039495,-500.0,0.0001508,2]
[333563871,1722249039505,-500.0,0.0001508,2]
[333563872,1722249039515,-655.46,0.0001508,2]
[333563873,1722249039524,-500.0,0.0001508,2]
[333563874,1722249039533,-506.21356583,0.00015081,2]
[333563875,1722249039553,-500.0,0.00015081,2]
[333563876,1722249039566,-503.27921189,0.00015081,2]
[333563877,1722249039576,-505.22080051,0.00015081,2]
[333563878,1722249039585,-502.71358584,0.00015081,2]
[333563879,1722249039594,-500.0,0.00015081,2]
[333563880,1722249039605,-503.3119361,0.00015081,2]
[333563881,1722249039614,-509.98537346,0.00015081,2]
[333563882,1722249039623,-519.91213025,0.00015081,2]
[333563883,1722249039633,-504.66876124,0.00015081,2]
[333563884,1722249039643,-505.61267179,0.00015081,2]
[333563885,1722249039653,-503.53226289,0.00015081,2]
[333563886,1722249039664,-255.14315066,0.00015081,2]
[333563887,1722249039674,-503.66773713,0.00015081,2]
[333563888,1722249039684,-500.0,0.00015081,2]
[333563889,1722249039693,-500.0,0.00015081,2]
[333563890,1722249039703,-500.0,0.00015081,2]
[333563891,1722249039713,-951.13,0.00015081,2]
[333563892,1722249039722,-500.0,0.00015081,2]
[333563893,1722249039732,-626.03,0.00015081,2]
[333563894,1722249039742,-500.0,0.00015081,2]
[333563895,1722249039752,-3696.31,0.00015081,2]
[333563896,1722249039761,-151.0,0.00015081,2]
[333563897,1722249039771,-500.0,0.00015081,2]
[333563898,1722249039780,-216.56845654,0.00015082,5]
[333563899,1722249039790,-7966.31089195,0.00015082,2]
[333563900,1722249039800,-288.13296248,0.00015082,2]
[333563901,1722249039809,-2574.54493168,0.00015094,2]
[333563902,1722249039819,-559.65,0.00015146,2]
[333563903,1722249039829,-150.112233,0.000152,2]
[333563904,1722249039838,-500.0,0.00015205,2]
[333563905,1722249039847,-2574.54493168,0.00015206,2]
[333563906,1722249039857,-500.0,0.00015215,2]
[333563907,1722249039866,-500.0,0.00015215,2]
[333563908,1722249039876,-500.0,0.00015273,2]
[333563909,1722249039885,-698.95,0.00015273,2]
[333563910,1722249039896,-559.65,0.00015305,2]
[333563911,1722249039906,-32132.9808972,0.00015306,2]
[333563912,1722249039915,-151.0,0.00015306,2]
[333563913,1722249039925,-500.0,0.00015314,2]
[333563915,1722249039935,-500.0,0.00015315,2]
[333563917,1722249039944,-559.65,0.00015315,2]
[333563918,1722249039954,-559.65,0.00015315,2]
[333563919,1722249039963,-65158.91448384,0.00015316,2]
[333563921,1722249039973,-151.0,0.00015316,2]
[333563922,1722249039982,-2574.54493168,0.00015317,2]
[333563923,1722249039991,-151.0,0.00015345,2]
[333563924,1722249040001,-156.0,0.0001535,2]
[333563925,1722249040011,-500.0,0.00015354,2]
[333563926,1722249040020,-446.13915279,0.00015354,2]
[333563927,1722249040030,-655.46,0.00015354,2]
[333563928,1722249040040,-500.0,0.00015354,2]
[333563929,1722249040050,-500.0,0.00015355,2]
[333563931,1722249040059,-500.0,0.00015355,2]
[333563933,1722249040069,-500.0,0.00015355,2]
[333563935,1722249040078,-951.13,0.00015355,2]
[333563937,1722249040088,-500.0,0.00015355,2]
[333563939,1722249040098,-3696.31,0.00015355,2]
[333563941,1722249040107,-500.0,0.00015355,2]
[333563943,1722249040117,-2574.54493168,0.00015429,2]
[333563945,1722249040127,-88888.0,0.0001543,2]
[333563946,1722249040137,-559.65,0.00015519,2]
[333563947,1722249040149,-151.0,0.0001552,2]
[333563948,1722249040159,-64265.9617943,0.0001552,2]
[333563949,1722249040168,-559.65,0.00015529,2]
[333563950,1722249040178,-559.65,0.00015529,2]
[333563952,1722249040189,-559.65,0.00015529,2]
[333563954,1722249040199,-151.0,0.0001553,2]
[333563956,1722249040209,-500.0,0.00015547,2]
[333563957,1722249040219,-698.95,0.00015547,2]
[333563958,1722249040228,-200.0,0.0001558,2]
[333563959,1722249040238,-1039.23813633,0.000156,2]
[333563960,1722249040248,-500.0,0.00015607,2]
[333563961,1722249040258,-2000.0,0.00015608,2]
[333563962,1722249040267,-32132.9808972,0.00015619,2]
[333563963,1722249040278,-500.0,0.00015628,2]
[333563964,1722249040288,-655.46,0.00015628,2]
[333563965,1722249040297,-500.0,0.00015628,2]
[333563974,1722249040306,-1252.69673581,0.00015629,5]
[333563977,1722249040415,-500.0,0.00015629,2]
[333563979,1722249040425,-500.0,0.00015629,2]
[333563981,1722249040435,-500.0,0.00015629,2]
[333563983,1722249040444,-951.13,0.00015629,2]
[333563985,1722249040454,-500.0,0.00015629,2]
[333563987,1722249040465,-3696.31,0.00015629,2]
[333563989,1722249040475,-474.2913872,0.00015629,2]
[333563991,1722249040487,-500.0,0.00015697,2]
[333563993,1722249040497,-559.65,0.00015697,2]
[333563995,1722249040506,-559.65,0.00015697,2]
[333563997,1722249040515,-32132.9808972,0.00015698,2]
[333563999,1722249040526,-245.226004,0.00015698,2]
[333564001,1722249040536,-559.65,0.00015698,2]
[333564003,1722249040545,-96398.9426915,0.00015699,2]
[333564005,1722249040557,-955.0,0.000157,2]
[333564007,1722249040566,-500.0,0.00015707,2]
[333564009,1722249040576,-500.0,0.00015707,2]
[333564011,1722249040585,-559.65,0.00015707,2]
[333564013,1722249040595,-559.65,0.00015707,2]
[333564015,1722249040604,-1990.82429951,0.00015708,2]
[333564017,1722249040615,-6999.1698205,0.00015708,2]
[333564019,1722249040624,-9639.05525324,0.00015708,2]
[333564021,1722249040634,-4180.04028286,0.00015708,2]
[333564022,1722249040644,-1162.16976726,0.00015708,2]
[333564023,1722249040654,-1382.47255271,0.00015708,2]
[333564024,1722249040664,-3086.6528281,0.00015708,2]
[333564025,1722249040673,-2277.39949897,0.00015708,3]
[333564026,1722249040683,-2123.86369588,0.00015708,2]
[333564027,1722249040692,-1645.8353511,0.00015708,2]
[333564028,1722249040702,-1437.78611875,0.00015708,2]
[333564029,1722249040711,-2138.42102512,0.00015708,2]
[333564030,1722249040720,-4018.01957075,0.00015708,2]
[333564031,1722249040729,-1762.71873065,0.00015708,2]
[333564032,1722249040741,-1500.0,0.00015708,2]
[333564033,1722249040751,-1172.04350055,0.00015708,2]
[333564034,1722249040760,-4238.78518136,0.00015708,2]
[333564035,1722249040770,-492.27173157,0.00015708,2]
[333564036,1722249040779,-20752.6436984,0.00015708,2]
[333564037,1722249040790,-500.0,0.00015708,2]
[333564038,1722249040799,-500.0,0.00015708,2]
[333564039,1722249040810,-559.65,0.00015708,2]
[333564040,1722249040820,-559.65,0.00015708,2]
[333564041,1722249040830,-559.65,0.00015708,2]
[333564042,1722249040840,-35001.9180202,0.00015709,2]
[333564043,1722249040850,-3643.82477392,0.00015744,2]
[333564045,1722249040859,-214.11874215,0.00015746,2]
[333564047,1722249040869,-196.0,0.00015751,2]
[333564049,1722249040879,-500.0,0.00015821,2]
[333564051,1722249040889,-698.95,0.00015821,2]
[333564053,1722249040899,-332.52574791,0.00015851,2]
[333564054,1722249040909,-500.0,0.00015902,2]
[333564055,1722249040919,-655.46,0.00015902,2]
[333564056,1722249040928,-500.0,0.00015902,2]
[333564057,1722249040937,-500.0,0.00015903,2]
[333564059,1722249040946,-500.0,0.00015903,2]
[333564061,1722249040956,-292.63440764,0.00015903,2]
[333564063,1722249040966,-951.13,0.00015903,2]
[333564065,1722249040975,-179.19835746,0.00015903,2]
[333564066,1722249040985,-3696.31,0.00015903,2]
[333564067,1722249040994,-154.71377951,0.00015952,2]
[333564068,1722249041004,-500.0,0.00015999,2]
[333564069,1722249041013,-3062.45863511,0.00016,2]
[333564070,1722249041023,-296.88487601,0.00016038,2]
[333564071,1722249041032,-500.0,0.00016095,2]
[333564072,1722249041042,-698.95,0.00016095,2]
[333564073,1722249041051,-150.112233,0.000161,2]
[333564074,1722249041061,-500.0,0.00016176,2]
[333564075,1722249041070,-655.46,0.00016176,2]
[333564076,1722249041079,-500.0,0.00016176,2]
[333564077,1722249041089,-500.0,0.00016177,2]
[333564078,1722249041098,-500.0,0.00016177,2]
[333564079,1722249041107,-951.13,0.00016177,2]
[333564080,1722249041116,-3696.31,0.00016177,2]
[333564081,1722249041126,-559.65,0.00016231,2]
[333564082,1722249041135,-427.85638501,0.00016369,2]
[333564083,1722249041146,-698.95,0.00016369,2]
[333564084,1722249041155,-150.112233,0.000164,2]
[333564085,1722249041165,-300.0,0.00016438,3]
[333564086,1722249041174,-202.25888299,0.00016438,3]
[333564087,1722249041185,-500.0,0.0001645,2]
[333564088,1722249041195,-655.46,0.0001645,2]
[333564089,1722249041204,-500.0,0.0001645,2]
[333564090,1722249041214,-500.0,0.00016451,2]
[333564091,1722249041225,-500.0,0.00016451,2]
[333564092,1722249041236,-951.13,0.00016451,2]
[333564093,1722249041248,-3696.31,0.00016451,2]
[333564094,1722249041260,-500.0,0.00016452,2]
[333564095,1722249041271,-155.8045593,0.00016493,2]
[333564096,1722249041281,-206.8246195,0.00016493,2]
[333564097,1722249041292,-153.0,0.00016493,2]
[333564098,1722249041303,-206.8246195,0.00016493,2]
[333564099,1722249041315,-205.9981146,0.00016493,2]
[333564100,1722249041327,-153.0,0.00016493,2]
[333564101,1722249041337,-153.0,0.00016493,2]
[333564102,1722249041347,-1381.01587183,0.00016498,2]